bitfinex-derivatives/quotes_SOLF0:USTF0_20260210
["timestamp","ask_amount","ask_price","bid_price","bid_amount"]
[1770762603797,3.75136395,82.6,82.561,3.95868153]
[1770762604602,96.6,82.634,82.568,10.906]
[1770762604603,3.75136395,82.59,82.568,10.906]
[1770762605199,3.75136395,82.59,82.557,10.9075]
[1770762605403,3.75136395,82.59,82.558,3.95868153]
[1770762606301,3.75339024,82.599,82.57,10.9057]
[1770762606503,3.75136395,82.6,82.57,10.9057]
[1770762610398,3.75136395,82.6,82.569,3.95868153]
[1770762611506,3.75136395,82.6,82.571,10.9056]
[1770762611701,3.75339024,82.586,82.552,3.95868153]
[1770762611909,3.75136395,82.58,82.552,3.95868153]
[1770762612103,3.75136395,82.59,82.552,3.95868153]
[1770762612796,3.75136395,82.59,82.551,4.91]
[1770762612797,3.75136395,82.59,82.561,14.86558153]
[1770762613000,10.9016,82.602,82.562,3.95868153]
[1770762613001,3.75136395,82.6,82.562,3.95868153]
[1770762613399,3.75136395,82.6,82.564,3.95868153]
[1770762613803,3.75136395,82.58,82.551,8.86868153]
[1770762614004,3.75136395,82.58,82.552,3.95868153]
[1770762614807,3.75136395,82.58,82.556,10.9075]
[1770762615302,3.75136395,82.59,82.556,10.9075]
[1770762616711,3.75136395,82.59,82.562,10.9067]
[1770762620617,3.75339024,82.599,82.565,10.9064]
[1770762621405,3.75339024,82.599,82.571,10.9056]
[1770762621719,7.62430034,82.61,82.571,10.9056]
[1770762621916,7.62430034,82.61,82.571,14.72877813]
[1770762622118,7.62430034,82.61,82.572,3.82317813]
[1770762622416,10.9007,82.609,82.575,3.82317813]
[1770762624812,3.75136395,82.62,82.58,3.85652157]
[1770762625612,3.75136395,82.62,82.57,3.75136395]
[1770762625613,3.75136395,82.63,82.59,3.85652157]
[1770762626210,10.898,82.629,82.594,3.85652157]
[1770762626908,3.75136395,82.63,82.598,10.9019]
[1770762632113,3.75136395,82.63,82.604,3.85652157]
[1770762633023,3.75136395,82.64,82.611,3.85652157]
[1770762633615,3.75136395,82.63,82.599,3.85652157]
[1770762634526,7.83172368,82.65,82.602,3.85652157]
[1770762635323,4.08035973,82.649,82.602,3.85652157]
[1770762635525,3.75136395,82.64,82.602,3.85652157]
[1770762635727,3.75136395,82.64,82.608,14.75722157]
[1770762636323,3.75136395,82.64,82.59,3.75136395]
[1770762636324,3.75136395,82.64,82.609,3.85652157]
[1770762637722,3.75136395,82.64,82.611,10.9004]
[1770762641730,3.75136395,82.64,82.611,3.85652157]
[1770762642033,578.18380865,82.654,82.62,3.85652157]
[1770762642034,3.75136395,82.65,82.62,3.85652157]
[1770762642234,7.83172368,82.65,82.62,3.85652157]
[1770762642829,3.75136395,82.64,82.607,14.75732157]
[1770762643626,4.08035973,82.649,82.568,96.64]
[1770762643627,3.75136395,82.63,82.6,10.9017]
[1770762643827,4.08035973,82.639,82.6,10.9017]
[1770762646435,4.08035973,82.639,82.601,3.85652157]
[1770762647434,4.08035973,82.639,82.602,4.9]
[1770762647937,3.75136395,82.65,82.611,3.85652157]
[1770762648729,3.75136395,82.64,82.614,10.8999]
[1770762651243,3.7516537,82.64,82.614,10.8999]
[1770762651441,3.7516537,82.64,82.611,3.85652157]
[1770762651642,3.7516537,82.65,82.611,3.85652157]
[1770762652543,3.74183192,82.68,82.629,3.78907136]
[1770762652734,44.26953587,82.69,82.63,3.7516537]
[1770762652939,40.51788217,82.669,82.62,3.7516537]
[1770762653139,40.51788217,82.684,82.63,3.7516537]
[1770762653342,3.7516537,82.67,82.62,3.7516537]
[1770762653744,3.7516537,82.67,82.638,10.8968]
[1770762654744,3.7516537,82.68,82.638,10.8968]
[1770762656352,3.7516537,82.68,82.646,10.8957]
[1770762656943,3.74808374,82.68,82.646,10.8957]
[1770762658648,44.20740716,82.68,82.646,10.8957]
[1770762659352,3.74808374,82.67,82.636,10.8971]
[1770762659550,3.74808374,82.66,82.61,3.74808374]
[1770762659745,40.45932342,82.67,82.607,96.58]
[1770762659746,44.20740716,82.67,82.62,3.74808374]
[1770762661754,3.74808374,82.68,82.636,10.897]
[1770762661956,3.74808374,82.68,82.63,3.74808374]
[1770762662556,2.37720447,82.647,82.607,13.45542419]
[1770762662767,8.374e-05,82.63,82.591,3.78907136]
[1770762663058,8.374e-05,82.63,82.601,10.9016]
[1770762663564,8.69705945,82.667,82.569,49.98071445]
[1770762663754,10.8962,82.643,82.58,3.74808374]
[1770762664060,3.74808374,82.67,82.611,49.98071445]
[1770762664260,10.8917,82.677,82.611,49.98071445]
[1770762664457,3.74808374,82.67,82.621,50.03406821]
[1770762664762,3.74808374,82.66,82.621,50.03406821]
[1770762665551,3.74808374,82.67,82.621,50.03406821]
[1770762666260,3.74808374,82.68,82.621,50.03406821]
[1770762667764,3.74808374,82.67,82.624,61.10631681]
[1770762669660,3.74808374,82.68,82.624,61.10631681]
[1770762669867,10.8914,82.679,82.624,61.10631681]
[1770762670357,3.74808374,82.67,82.624,50.20771681]
[1770762679269,3.74808374,82.67,82.629,50.19893729]
[1770762686981,10.8923,82.672,82.629,50.19893729]
[1770762687683,10.8923,82.672,82.631,50.17921247]
[1770762693686,10.8915,82.678,82.635,50.17792068]
[1770762694685,10.8907,82.685,82.635,50.17792068]
[1770762695586,10.8914,82.679,82.639,10.8966]
[1770762695776,10.8914,82.679,82.64,50.19191205]
[1770762699981,10.8914,82.679,82.642,50.18035525]
[1770762700793,10.8914,82.679,82.645,50.1831942]
[1770762701391,156.6,82.706,82.483,98.10234787]
[1770762701392,3.74808374,82.67,82.633,50.1831942]
[1770762701596,8.7008922,82.677,82.633,50.1831942]
[1770762701796,3.74808374,82.68,82.633,50.1831942]
[1770762701797,8.7008922,82.679,82.633,50.1831942]
[1770762702096,8.7008922,82.678,82.633,50.1831942]
[1770762702299,8.7008922,82.677,82.633,50.1831942]
[1770762702499,8.7008922,82.679,82.633,50.1831942]
[1770762702693,10.893,82.667,82.633,50.1831942]
[1770762706900,3.74808374,82.68,82.584,50.31885542]
[1770762706901,3.74808374,82.64,82.584,50.31885542]
[1770762707203,3.74808374,82.6,82.568,50.31885542]
[1770762711605,14.64868374,82.61,82.57,55.24558649]
[1770762716908,14.65559075,82.61,82.57,55.24558649]
[1770762718110,14.65429075,82.62,82.571,50.23292246]
[1770762719712,14.65429075,82.62,82.573,50.23327954]
[1770762721217,14.65429075,82.62,82.576,50.19031001]
[1770762722215,14.65429075,82.62,82.578,50.19031001]
[1770762723918,3.75499075,82.61,82.578,50.19031001]
[1770762724419,3.75499075,82.62,82.578,61.09501001]
[1770762726215,10.9018,82.6,82.565,50.16184477]
[1770762726519,3.75499075,82.61,82.565,50.16184477]
[1770762727713,10.9009,82.607,82.567,50.18637531]
[1770762728725,10.9009,82.607,82.569,61.13519549]
[1770762730220,10.8992,82.62,82.576,50.22929549]
[1770762730426,14.65419075,82.62,82.576,50.22929549]
[1770762730924,14.65559075,82.61,82.576,50.22929549]
[1770762735228,10.9006,82.61,82.576,50.22929549]
[1770762738633,10.9013,82.605,82.576,50.22929549]
[1770762740938,3.75499075,82.62,82.576,50.22929549]
[1770762740939,10.8997,82.616,82.576,50.22929549]
[1770762741136,10.8997,82.616,82.581,50.19232121]
[1770762744028,3.75499075,82.62,82.57,16.05499075]
[1770762744029,3.75499075,82.62,82.585,50.17796666]
[1770762745738,14.65429075,82.62,82.585,50.17796666]
[1770762746438,10.8993,82.62,82.585,50.17796666]
[1770762750035,108.68,82.639,82.591,50.17923183]
[1770762750231,3.75499075,82.64,82.591,50.17923183]
[1770762751742,10.8972,82.636,82.594,50.1794804]
[1770762756444,10.8972,82.636,82.601,50.19973276]
[1770762756940,10.8963,82.642,82.61,3.75499075]
[1770762757146,3.75499075,82.67,82.621,50.19973276]
[1770762758745,10.8937,82.662,82.621,50.19973276]
[1770762768350,10.8928,82.669,82.623,50.21753236]
[1770762768555,10.8928,82.669,82.584,14.86420318]
[1770762768556,3.75499075,82.7,82.651,50.21808059]
[1770762768942,10.8915,82.679,82.651,50.21808059]
[1770762769143,3.75499075,82.69,82.651,50.21808059]
[1770762769440,3.74741981,82.69,82.651,50.21808059]
[1770762770850,10.8906,82.685,82.651,50.21808059]
[1770762771750,10.8914,82.679,82.651,50.21808059]
[1770762775945,3.74741981,82.68,82.63,3.74741981]
[1770762776146,3.74741981,82.69,82.64,3.74741981]
[1770762776845,10.8907,82.684,82.64,3.74744708]
[1770762777550,411.65673676,82.715,82.66,3.74744708]
[1770762777953,411.65673676,82.715,82.661,35.18329647]
[1770762778852,10.8884,82.702,82.664,35.22407884]
[1770762779647,10.8875,82.709,82.664,35.22407884]
[1770762779848,10.8875,82.709,82.67,3.74744708]
[1770762780049,10.8875,82.709,82.671,35.22407884]
[1770762780250,411.65673676,82.715,82.671,35.22407884]
[1770762780851,10.8884,82.702,82.671,35.22407884]
[1770762781851,10.8894,82.694,82.65,3.74744708]
[1770762782755,10.8904,82.687,82.642,10.8962]
[1770762783855,10.8904,82.687,82.645,25.91143697]
[1770762786158,10.8904,82.687,82.646,10.8957]
[1770762786359,10.8904,82.687,82.647,25.95464826]
[1770762803870,10.8904,82.687,82.646,10.8957]
[1770762803871,10.8904,82.687,82.651,25.89646492]
[1770762805061,3.74744708,82.69,82.654,25.88587263]
[1770762805261,10.8895,82.694,82.654,25.88587263]
[1770762806771,10.8895,82.694,82.656,25.81886246]
[1770762814790,10.8902,82.689,82.656,25.81886246]
[1770762816492,411.65673676,82.715,82.66,25.82212431]
[1770762816493,10.8885,82.701,82.66,25.82212431]
[1770762820290,163.42,82.708,82.663,25.81902969]
[1770762820498,3.74744708,82.71,82.663,25.81902969]
[1770762820994,10.8891,82.697,82.663,25.81902969]
[1770762822789,10.8874,82.71,82.67,10.8925]
[1770762822995,10.8874,82.71,82.671,25.87272773]
[1770762823396,10.8874,82.71,82.673,25.87272773]
[1770762825305,164.34,82.714,82.68,25.83830885]
[1770762825903,10.886,82.721,82.68,25.83830885]
[1770762827805,10.8849,82.729,82.689,25.84198398]
[1770762828002,167.0,82.748,82.689,25.84198398]
[1770762828205,3.74744708,82.74,82.695,10.8892]
[1770762828405,3.74744708,82.74,82.696,20.39953398]
[1770762829704,10.8837,82.738,82.698,10.8888]
[1770762829901,10.8837,82.738,82.699,20.40134611]
[1770762832700,170.86,82.739,82.707,20.3258512]
[1770762832900,10.8821,82.75,82.707,20.3258512]
[1770762833105,3.74744708,82.76,82.711,20.3258512]
[1770762834810,14.62824708,82.76,82.716,10.8865]
[1770762835104,14.62824708,82.76,82.717,20.39224249]
[1770762839009,14.6215616,82.76,82.717,20.39224249]
[1770762840710,14.6228616,82.75,82.717,20.39224249]
[1770762840908,14.6228616,82.75,82.706,31.1881036]
[1770762841109,14.6228616,82.75,82.707,20.3003036]
[1770762841506,10.8834,82.74,82.696,10.8891]
[1770762841812,14.6241616,82.74,82.696,31.1894036]
[1770762842007,14.6241616,82.74,82.697,20.3003036]
[1770762846007,14.6241616,82.74,82.699,20.342203]
[1770762846008,10.8834,82.74,82.699,20.342203]
[1770762846615,10.8822,82.749,82.709,20.33543889]
[1770762846916,3.7407616,82.76,82.709,20.33543889]
[1770762847921,10.881,82.759,82.715,10.8865]
[1770762848217,10.881,82.759,82.716,20.33543889]
[1770762850711,10.881,82.759,82.718,20.32150447]
[1770762855226,10.881,82.759,82.717,10.8863]
[1770762855227,10.881,82.759,82.722,20.29369586]
[1770762855412,3.7407616,82.75,82.722,20.29369586]
[1770762855612,3.7407616,82.76,82.722,20.29369586]
[1770762856813,10.8813,82.756,82.722,20.29369586]
[1770762858621,10.8809,82.759,82.722,20.29369586]
[1770762861920,9.19238544,82.77,82.725,20.35506163]
[1770762862721,10.8807,82.761,82.725,20.35506163]
[1770762862922,9.19238544,82.77,82.725,20.35506163]
[1770762863123,3.7407616,82.76,82.725,20.35506163]
[1770762864718,10.8814,82.756,82.725,20.35506163]
[1770762867821,3.7407616,82.76,82.725,20.35506163]
[1770762868313,9.19238544,82.77,82.725,20.35506163]
[1770762868727,10.8814,82.755,82.725,20.35506163]
[1770762872026,10.8806,82.761,82.725,20.35506163]
[1770762872622,10.8806,82.761,82.695,14.86420318]
[1770762872623,9.19238544,82.77,82.73,20.3188464]
[1770762873724,9.19238544,82.77,82.731,10.8844]
[1770762873725,20.07188544,82.77,82.731,10.8844]
[1770762873926,20.07188544,82.77,82.732,20.3188464]
[1770762874628,16.33112384,82.77,82.732,20.3188464]
[1770762876030,16.33112384,82.77,82.733,10.94]
[1770762876327,16.33112384,82.77,82.734,20.30984685]
[1770762878732,20.07188544,82.77,82.734,20.30984685]
[1770762882823,5.45162384,82.77,82.738,10.8836]
[1770762883024,5.45162384,82.77,82.739,20.31348742]
[1770762883331,9.19238544,82.77,82.739,20.31348742]
[1770762884738,20.07188544,82.77,82.739,20.31348742]
[1770762888737,16.33112384,82.77,82.739,20.31348742]
[1770762898256,5.45162384,82.77,82.739,20.31348742]
[1770762899758,5.45162384,82.77,82.74,13.88]
[1770762900253,11.31410992,82.793,82.747,17.51594337]
[1770762900458,36.34,82.831,82.74,17.61970394]
[1770762900459,3.73970394,82.81,82.751,17.51594337]
[1770762900753,3.73970394,82.8,82.751,17.51594337]
[1770762900957,3.73721704,82.8,82.751,17.51594337]
[1770762901852,10.8756,82.799,82.758,17.51599048]
[1770762904154,167.64,82.824,82.761,17.47962475]
[1770762904355,3.73721704,82.81,82.761,17.47962475]
[1770762905648,10.8744,82.809,82.77,10.8793]
[1770762906259,10.8744,82.809,82.762,17.46587736]
[1770762907154,10.8735,82.816,82.774,17.38972884]
[1770762907353,439.80421943,82.833,82.774,17.38972884]
[1770762907354,3.73721704,82.83,82.774,17.38972884]
[1770762907550,21.7328,82.87,82.746,21.7651]
[1770762907551,3.73721704,82.85,82.794,17.38972884]
[1770762908152,167.34,82.869,82.794,17.38972884]
[1770762908153,10.8692,82.848,82.795,10.8761]
[1770762908460,3.73721704,82.85,82.796,17.38972884]
[1770762908857,10.8691,82.849,82.802,17.38511806]
[1770762910760,10.8691,82.849,82.806,17.34416412]
[1770762915964,36.34,82.89,82.831,17.32999412]
[1770762916263,3.73721704,82.87,82.831,17.32999412]
[1770762917166,10.8652,82.879,82.831,17.32999412]
[1770762917358,3.73721704,82.87,82.831,17.32999412]
[1770762918662,3.73721704,82.87,82.833,17.38566386]
[1770762919063,3.73721704,82.88,82.839,17.38566386]
[1770762919262,3.73721704,82.92,82.861,11.95371386]
[1770762919560,3.73721704,82.92,82.808,36.34]
[1770762919561,3.73721704,82.92,82.871,11.95371386]
[1770762919768,3.73721704,82.91,82.875,11.95371386]
[1770762920057,96.4,82.951,82.875,11.95371386]
[1770762920255,3.73721704,82.93,82.875,11.95371386]
[1770762920656,3.73721704,82.94,82.891,11.89721874]
[1770762921261,3.73721704,82.96,82.901,11.89721874]
[1770762921660,3.73721704,82.94,82.901,11.89721874]
[1770762922165,3.73721704,82.93,82.901,11.89721874]
[1770762922366,2.09835117,82.992,82.901,11.89721874]
[1770762922367,3.73721704,82.94,82.901,11.89721874]
[1770762923362,10.8562,82.947,82.901,11.89721874]
[1770762924061,96.36,82.987,82.901,11.89721874]
[1770762924269,3.73721704,82.93,82.901,11.89721874]
[1770762924463,3.73721704,82.93,82.87,3.73721704]
[1770762924765,3.73721704,82.92,82.876,11.92702094]
[1770762925469,3.73721704,82.91,82.876,11.92702094]
[1770762930566,3.73721704,82.9,82.864,11.79210814]
[1770762930965,3.73721704,82.89,82.849,11.79210814]
[1770762931873,3.73721704,82.87,82.83,11.79210814]
[1770762932172,3.73721704,82.86,82.83,11.79210814]
[1770762932377,36.34,82.926,82.83,11.79210814]
[1770762932580,3.73721704,82.88,82.831,9.98122006]
[1770762933469,3.73721704,82.89,82.831,9.98122006]
[1770762933671,10.8639,82.889,82.834,10.8709]
[1770762933881,10.8639,82.889,82.835,9.98122006]
[1770762934077,96.32,82.917,82.835,9.98122006]
[1770762934276,3.73721704,82.91,82.863,9.98122006]
[1770762935783,10.8612,82.909,82.863,9.98122006]
[1770762939083,10.8612,82.909,82.866,9.93173256]
[1770762939582,10.8601,82.918,82.868,9.93173256]
[1770762940587,3.73721704,82.91,82.868,9.93173256]
[1770762940988,10.8615,82.907,82.868,9.93173256]
[1770762941384,3.73721704,82.9,82.856,9.94021345]
[1770762941689,3.73721704,82.89,82.856,9.94021345]
[1770762942490,3.73721704,82.89,82.774,14.86420318]
[1770762942491,3.73721704,82.87,82.822,9.94021345]
[1770762942884,3.73721704,82.87,82.832,9.96932358]
[1770762943686,3.73721704,82.87,82.835,10.8708]
[1770762945290,3.73721704,82.87,82.835,20.81670273]
[1770762945791,3.73721704,82.87,82.836,9.94590273]
[1770762948694,10.8652,82.879,82.789,21.7537]
[1770762948695,3.73721704,82.88,82.842,20.82426103]
[1770762948895,3.73721704,82.88,82.843,9.95436103]
[1770762949090,10.8642,82.886,82.843,9.95436103]
[1770762950694,10.8642,82.886,82.845,10.02800948]
[1770762951295,3.73721704,82.9,82.845,10.02800948]
[1770762952594,10.8616,82.906,82.859,10.0180645]
[1770762952899,165.26,82.918,82.859,10.0180645]
[1770762952900,3.73721704,82.9,82.859,10.0180645]
[1770762953096,10.8613,82.908,82.863,10.0180645]
[1770762953504,10.8613,82.908,82.865,10.0180645]
[1770762954704,10.8613,82.908,82.865,20.8849645]
[1770762955003,10.8613,82.908,82.866,10.02675997]
[1770762959507,3.73721704,82.9,82.864,16.98]
[1770762961005,3.72914449,82.9,82.864,16.98]
[1770762961707,10.863,82.896,82.864,16.98]
[1770762961908,3.72914449,82.89,82.851,10.03073601]
[1770762962313,11.22157819,82.925,82.851,10.03073601]
[1770762962510,3.72914449,82.89,82.851,10.03073601]
[1770762962913,3.72914449,82.9,82.852,10.8686]
[1770762963109,3.72914449,82.9,82.853,9.98233068]
[1770762963413,10.8645,82.884,82.853,9.98233068]
[1770762963610,3.72914449,82.88,82.831,9.98233068]
[1770762964606,3.72914449,82.88,82.831,12.37233068]
[1770762964919,10.8655,82.876,82.834,9.98994599]
[1770762969114,3.72914449,82.88,82.838,9.91107226]
[1770762971113,10.8654,82.877,82.838,9.91107226]
[1770762971309,3.72914449,82.87,82.832,9.90448536]
[1770762972714,10.867,82.865,82.832,9.90448536]
[1770762977516,10.8655,82.877,82.834,9.94992564]
[1770762978718,10.8655,82.877,82.837,9.93953137]
[1770762980425,10.8655,82.877,82.839,9.93953137]
[1770762983025,3.72914449,82.87,82.839,9.93953137]
[1770762986125,3.72914449,82.86,82.839,9.93953137]
[1770762986326,3.72914449,82.87,82.839,9.93953137]
[1770762991234,10.8653,82.878,82.839,9.93953137]
[1770762991424,10.8643,82.885,82.846,9.52368758]
[1770762991622,3.72914449,82.88,82.846,9.52368758]
[1770762993030,10.8643,82.885,82.846,9.52368758]
[1770762994234,3.72914449,82.88,82.846,9.52368758]
[1770762996637,10.8643,82.885,82.846,9.52368758]
[1770762996937,10.8658,82.874,82.846,9.52368758]
[1770763002940,10.8642,82.887,82.846,9.52368758]
[1770763005242,10.8629,82.896,82.846,9.52368758]
[1770763005643,3.72914449,82.89,82.846,9.52368758]
[1770763007843,3.72977692,82.89,82.846,9.52368758]
[1770763009149,10.8638,82.889,82.846,9.52368758]
[1770763011251,3.72977692,82.89,82.846,9.52368758]
[1770763011460,3.72977692,82.88,82.846,9.52368758]
[1770763013152,10.8638,82.889,82.846,9.52368758]
[1770763015849,3.72977692,82.89,82.846,9.52368758]
[1770763016055,10.8652,82.879,82.846,9.52368758]
[1770763017251,10.8652,82.879,82.804,21.95928862]
[1770763017252,3.72977692,82.86,82.831,8.75355782]
[1770763017756,3.72977692,82.87,82.831,8.75355782]
[1770763018457,3.72977692,82.86,82.811,8.75355782]
[1770763018657,3.72977692,82.86,82.832,2.38]
[1770763018953,3.72977692,82.85,82.811,8.75355782]
[1770763019748,3.72977692,82.84,82.8,8.74759885]
[1770763020156,3.72977692,82.84,82.805,323.22557949]
[1770763020852,3.72977692,82.84,82.805,8.74759885]
[1770763020853,10.8704,82.839,82.805,8.74759885]
[1770763021057,3.72977692,82.83,82.793,8.7396236]
[1770763021260,3.72977692,82.83,82.741,12.04479096]
[1770763021261,3.72977692,82.82,82.771,8.7396236]
[1770763021752,10.8733,82.817,82.771,8.7396236]
[1770763021948,3.72977692,82.81,82.771,8.7396236]
[1770763022947,11.22157819,82.847,82.752,8.78087524]
[1770763022948,3.73693403,82.8,82.752,8.78087524]
[1770763024657,3.73693403,82.81,82.761,8.75855157]
[1770763025155,10.8744,82.809,82.763,8.75855157]
[1770763036268,98.34,82.83,82.738,102.34]
[1770763036269,3.73693403,82.79,82.742,8.75593624]
[1770763038263,10.8773,82.787,82.742,8.75593624]
[1770763038465,3.73693403,82.79,82.742,8.75593624]
[1770763038670,14.61513403,82.78,82.742,8.75593624]
[1770763039370,10.8772,82.787,82.742,8.75593624]
[1770763040368,3.73693403,82.8,82.744,8.7924831]
[1770763041166,10.8758,82.798,82.748,8.77724983]
[1770763043472,10.8758,82.798,82.75,8.7679929]
[1770763045266,10.8745,82.808,82.76,8.77401033]
[1770763045469,10.8745,82.808,82.761,8.77401033]
[1770763046661,10.8745,82.808,82.761,19.65451033]
[1770763046869,10.8745,82.808,82.762,8.75256343]
[1770763048677,3.73693403,82.82,82.77,8.73752803]
[1770763048678,10.8733,82.817,82.77,8.73752803]
[1770763048870,3.73693403,82.82,82.77,8.73752803]
[1770763049685,10.8739,82.813,82.771,8.73752803]
[1770763052478,10.8729,82.82,82.773,8.71724954]
[1770763053773,14.60983403,82.82,82.773,8.71724954]
[1770763059585,10.8737,82.814,82.773,8.71724954]
[1770763063585,3.73693403,82.81,82.773,8.71724954]
[1770763063988,3.73693403,82.8,82.762,8.70767168]
[1770763064290,3.73693403,82.78,82.732,8.70767168]
[1770763065192,3.73693403,82.78,82.739,8.71877339]
[1770763067397,3.73693403,82.78,82.741,8.74401645]
[1770763068699,3.73693403,82.78,82.743,8.7444728]
[1770763076900,8.78049943,82.797,82.743,8.7444728]
[1770763077099,3.73693403,82.8,82.743,8.7444728]
[1770763077803,10.8759,82.797,82.753,8.73127739]
[1770763080611,8.78049943,82.812,82.75,108.76]
[1770763080612,8.78049943,82.812,82.764,8.72914981]
[1770763080905,3.73693403,82.83,82.771,8.72914981]
[1770763081107,3.73693403,82.82,82.775,8.72914981]
[1770763082711,3.73693403,82.82,82.781,10.8779]
[1770763082911,3.73574502,82.82,82.782,8.73833949]
[1770763086109,10.872,82.827,82.782,8.73833949]
[1770763091024,10.8738,82.813,82.769,8.72206732]
[1770763091224,10.8738,82.813,82.764,10.8802]
[1770763091225,3.73574502,82.81,82.77,8.72206732]
[1770763092714,10.8745,82.808,82.77,8.72206732]
[1770763094514,10.8733,82.817,82.77,8.72206732]
[1770763097920,10.8733,82.817,82.776,8.71085905]
[1770763099411,10.8713,82.832,82.776,8.71085905]
[1770763099616,3.73574502,82.83,82.776,8.71085905]
[1770763100819,10.8718,82.828,82.779,8.70267786]
[1770763102025,10.8718,82.828,82.783,8.70267786]
[1770763104925,10.8718,82.828,82.765,96.4]
[1770763104926,10.8718,82.828,82.785,8.70008253]
[1770763106934,10.8718,82.828,82.787,8.70834522]
[1770763107829,10.8718,82.828,82.791,8.70834522]
[1770763108033,3.73574502,82.85,82.793,8.70834522]
[1770763108734,14.60474502,82.85,82.801,10.8752]
[1770763109032,10.869,82.85,82.802,8.7117771]
[1770763109235,14.60474502,82.85,82.802,8.7117771]
[1770763109733,14.60474502,82.85,82.804,8.7117771]
[1770763109935,3.73574502,82.85,82.804,8.7117771]
[1770763110127,23.38394445,82.86,82.804,8.7117771]
[1770763111534,14.60344502,82.86,82.804,8.7117771]
[1770763111834,10.8684,82.854,82.813,8.7145706]
[1770763123255,10.8684,82.854,82.815,8.73287714]
[1770763126553,10.8684,82.854,82.817,8.7263361]
[1770763129057,3.73574502,82.85,82.817,8.7263361]
[1770763133362,3.73297964,82.85,82.817,8.7263361]
[1770763134061,10.8675,82.861,82.819,8.7042814]
[1770763135553,3.73297964,82.87,82.819,8.7042814]
[1770763136062,8.78049943,82.882,82.821,8.69818243]
[1770763136063,3.73297964,82.88,82.821,8.69818243]
[1770763136655,3.73297964,82.87,82.821,8.69818243]
[1770763136855,8.78049943,82.882,82.824,8.71278715]
[1770763137056,3.73297964,82.87,82.824,8.71278715]
[1770763138569,10.8654,82.877,82.836,8.71278715]
[1770763138769,3.73297964,82.87,82.836,8.71278715]
[1770763139664,3.73297964,82.86,82.827,8.71706408]
[1770763139871,3.73297964,82.85,82.801,8.71706408]
[1770763140870,10.8692,82.849,82.805,8.74317635]
[1770763145970,10.8692,82.849,82.808,8.76372345]
[1770763147468,10.87,82.842,82.808,8.76372345]
[1770763148077,10.8707,82.837,82.798,8.76448332]
[1770763148377,3.73349825,82.84,82.798,8.76448332]
[1770763149685,10.8705,82.839,82.798,19.64018332]
[1770763149986,10.8705,82.839,82.799,8.75139589]
[1770763151986,10.8705,82.839,82.802,8.71976056]
[1770763152388,10.8692,82.849,82.802,8.71976056]
[1770763153090,10.8706,82.838,82.802,8.71976056]
[1770763153386,3.73349825,82.83,82.802,8.71976056]
[1770763153890,10.8706,82.838,82.802,8.71976056]
[1770763156990,10.8706,82.838,82.78,3.73349825]
[1770763156991,10.8706,82.838,82.804,8.75792399]
[1770763157392,8.75521952,82.849,82.805,19.63262399]
[1770763157696,3.73349825,82.85,82.806,8.75792399]
[1770763158184,8.75521952,82.849,82.806,8.75792399]
[1770763158385,3.73349825,82.85,82.806,8.75792399]
[1770763158692,10.8694,82.847,82.806,8.75792399]
[1770763158893,3.73349825,82.85,82.806,8.75792399]
[1770763160693,10.8702,82.84,82.806,8.75792399]
[1770763160895,3.73349825,82.85,82.809,8.73144907]
[1770763161803,10.8693,82.848,82.809,8.73144907]
[1770763168104,10.8679,82.858,82.813,8.70931139]
[1770763168304,8.75521952,82.857,82.813,8.70931139]
[1770763168505,8.75521952,82.856,82.813,8.70931139]
[1770763168703,8.75521952,82.855,82.813,8.70931139]
[1770763168903,8.75521952,82.859,82.813,8.70931139]
[1770763169110,8.75521952,82.858,82.813,8.70931139]
[1770763169309,8.75521952,82.857,82.813,8.70931139]
[1770763169610,8.75521952,82.856,82.813,8.70931139]
[1770763169806,3.73349825,82.85,82.813,8.70931139]
[1770763170714,10.8687,82.852,82.813,8.70931139]
[1770763170916,3.73349825,82.85,82.813,8.70931139]
[1770763174804,3.73349825,82.85,82.818,8.69024035]
[1770763176414,155.34,82.862,82.803,8.69024035]
[1770763176415,3.73349825,82.84,82.803,8.69024035]
[1770763176616,3.73349825,82.83,82.803,8.69024035]
[1770763179111,10.8707,82.837,82.803,8.69024035]
[1770763179515,3.73349825,82.83,82.803,8.69024035]
[1770763181717,10.8714,82.832,82.803,8.69024035]
[1770763181917,3.73349825,82.83,82.803,8.69024035]
[1770763184627,3.73349825,82.83,82.805,8.70793418]
[1770763184824,8.75521952,82.837,82.805,8.70793418]
[1770763185019,8.75521952,82.836,82.805,8.70793418]
[1770763185323,8.75521952,82.835,82.805,8.70793418]
[1770763185620,8.75521952,82.839,82.805,8.70793418]
[1770763185824,8.75521952,82.839,82.807,8.70793418]
[1770763186220,3.73349825,82.85,82.807,8.70793418]
[1770763186221,8.75521952,82.848,82.807,8.70793418]